Cogmind - Beta 13 @@@ ROGUE MODE // 2024.05.04 @ 17:51:23 Player: Compound1080 Result: Self-destructed Performance ------------- Evolutions (1) 500 Regions Visited (3) 600 Robots Destroyed (0) 0 Value Destroyed (0) 0 Prototype IDs (2) 40 Alien Tech Used (0) 0 Bonus (200) 200 TOTAL SCORE: 1340 Bonus ------- Pacifist 200 Cogmind --------- Core Integrity 221/400 Matter 182/300 Energy 100/100 System Corruption 0% Temperature Cool (0) Movement Core (150) Ox2 Location -9/Materials Parts ------- > --- POWER (1) -------- (None) > --- PROPULSION (2) --- (None) > --- UTILITY (4) ------ Small Storage Unit Signal Interpreter > --- WEAPON (2) ------- Maul > --- INVENTORY (8) ---- Hover Unit Flight Unit Structural Scanner Small Laser Grenade Launcher Peak State ------------ > --- POWER ------------ Ion Engine > --- PROPULSION ------- Armored Wheel Armored Wheel > --- UTILITY ---------- Small Storage Unit Signal Interpreter > --- WEAPON ----------- (None) > --- INVENTORY -------- Ion Engine Hover Unit Flight Unit Structural Scanner Small Laser Grenade Launcher [Rating: 7] Favorites ----------- Power Ion Engine Engine Ion Engine Propulsion Compact Wheel Leg Aluminum Leg Wheel Compact Wheel Hover Unit Hover Unit Flight Unit Flight Unit Utility Small Storage Unit Device Structural Scanner Storage Small Storage Unit Processor Signal Interpreter Weapon Maul Impact Weapon Maul Build | -11 -10 -10 -9 ------- Run | Yrd Mat Min Mat Slots Evolved 2 | . . . 2 Power . | . . . . Propulsion . | . . . . Utility 2 | . . . 2 Weapon . | . . . . Parts Attached 14 | 5 7 1 1 Power 2 | 1 . 1 . Engine 2 | 1 . 1 . Core . | . . . . Reactor . | . . . . Propulsion 8 | 3 5 . . Treads . | . . . . Leg 1 | 1 . . . Wheel 5 | 2 3 . . Hover 1 | . 1 . . Flight 1 | . 1 . . Utility 3 | 1 2 . . Device 1 | . 1 . . Storage 1 | 1 . . . Processor 1 | . 1 . . Hackware . | . . . . Protection . | . . . . Artifact . | . . . . Weapon 1 | . . . 1 Energy Gun . | . . . . Energy Cannon . | . . . . Ballistic Gun . | . . . . Ballistic Cannon . | . . . . Launcher . | . . . . Special Weapon . | . . . . Impact Weapon 1 | . . . 1 Slashing Weapon . | . . . . Piercing Weapon . | . . . . Special Melee Weapon . | . . . . Unidentified Prototypes . | . . . . Parts Lost 4 | . . 2 2 Power 2 | . . 1 1 Propulsion 2 | . . 1 1 Utility . | . . . . Weapon . | . . . . Highest Loss Streak 2 | . . 2 1 To Critical Strikes . | . . . . Average Slot Usage (%) 58 | . 63 68 46 Engine 12 | . 14 11 11 Wheel 14 | . 16 28 7 Hover 5 | . 9 . . Device 5 | . 9 . . Storage 13 | . 14 14 11 Processor 5 | . . 14 11 Impact Weapon 1 | . . . 5 Naked Turns . | . . . . Heaviest Build 13 | 10 11 10 13 Greatest Support 32 | 32 32 24 12 Greatest Overweight (x) 4 | . 1 . 4 Average Overweight (x) . | . . . . Largest Inventory Capacity 8 | 8 8 8 8 Average Capacity 7 | 7 8 8 8 Most Carried 8 | 5 8 6 6 Average Carried 6 | 3 7 5 5 Final Capacity 8 | 8 8 8 8 Final Carried 6 | 4 6 5 5 Class Distribution -------------------- 100% | Mutant Dominant Class ---------------- Mutant | -10/Materials Mutant | -10/Mines Mutant | -9/Materials Resources | -11 -10 -10 -9 ----------- Run | Yrd Mat Min Mat Matter Collected 202 | 202 . . . Remotely . | . . . . Salvage Created . | . . . . Parts . | . . . . Haulers Intercepted . | . . . . Recyclers Shooed . | . . . . Parts Field Recycled . | . . . . Retrieved Matter . | . . . . Parts Self-Destructed . | . . . . Prevented . | . . . . Kills | -11 -10 -10 -9 ------- Run | Yrd Mat Min Mat Combat Hostiles Destroyed . | . . . . Classes Destroyed . | . . . . Best Kill Streak . | . . . . Combat Bots Only . | . . . . Max Kills in Single Turn . | . . . . Gunslinging . | . . . . Exploded . | . . . . Melee . | . . . . Uniques/NPCs Destroyed . | . . . . Combat | -11 -10 -10 -9 -------- Run | Yrd Mat Min Mat Hostile Shots Fired 55 | . 8 10 37 Missed 20 | . 3 . 17 Damage Taken 756 | . 54 400 302 Core 301 | . 11 111 179 Absorbed by Shields . | . . . . Core Remaining (%) 75 | 100 . 51 . Volleys Fired . | . . . . Largest . | . . . . Hottest . | . . . . Shots Fired . | . . . . Gun . | . . . . Cannon . | . . . . Launcher . | . . . . Special . | . . . . Kinetic . | . . . . Thermal . | . . . . Explosive . | . . . . Electromagnetic . | . . . . Robot Hit Streak . | . . . . Robot Miss Streak . | . . . . Penetration Max . | . . . . Secondary Targets . | . . . . Shots Hit Robots . | . . . . Core Hits . | . . . . Critical Kills . | . . . . Critical Parts Destroyed . | . . . . Critical Strikes . | . . . . Melee Attacks 8 | . . . 8 Impact 8 | . . . 8 Slashing . | . . . . Piercing . | . . . . Sneak Attacks . | . . . . Combat Hostiles . | . . . . Follow-up Attacks . | . . . . Damage Inflicted . | . . . . Guns . | . . . . Cannons . | . . . . Explosions . | . . . . Melee . | . . . . Ramming . | . . . . Kinetic . | . . . . Thermal . | . . . . Explosive . | . . . . Electromagnetic . | . . . . Impact . | . . . . Slashing . | . . . . Piercing . | . . . . Highest Corruption . | . . . . Average Corruption . | . . . . Corruption Purged . | . . . . Corruption Blocked . | . . . . Overload Shots . | . . . . Overflow Damage . | . . . . Projectiles . | . . . . Explosions . | . . . . Melee . | . . . . Knockbacks . | . . . . Impact . | . . . . Kinetic . | . . . . Secondary . | . . . . Self-Inflicted Damage . | . . . . Shots . | . . . . Rammed . | . . . . Targets Rammed . | . . . . Kicked . | . . . . Crushed . | . . . . Highest Temperature 4 | . . . 4 Average Temperature 4 | . . . 4 Received Heat Transfer 168 | . 30 . 138 Siege Activations . | . . . . Robots Corrupted . | . . . . Combat Hostiles . | . . . . Parts Fried . | . . . . Impact Corruptions . | . . . . Robots Melted . | . . . . Combat Hostiles . | . . . . Parts Melted . | . . . . Heat Transferred . | . . . . Parts Sabotaged . | . . . . Parts Stolen . | . . . . Parts Stripped . | . . . . Power Chain Reactions . | . . . . Alert | -11 -10 -10 -9 ------- Run | Yrd Mat Min Mat Peak Influence 30 | . 30 11 21 Initial 11 | . . 11 . Average 4 | . 2 9 9 Maximum Alert Level . | . . . . Low Security (%) 100 | 100 100 100 100 Level 1 . | . . . . Level 2 . | . . . . Level 3 . | . . . . Level 4 . | . . . . Level 5 . | . . . . High Security . | . . . . Max Security . | . . . . Squads Dispatched 1 | . 1 . . Investigation 1 | . 1 . . Extermination . | . . . . Reinforcement . | . . . . Assault . | . . . . Garrison . | . . . . Intercept . | . . . . Searches Triggered . | . . . . Construction Impeded . | . . . . Haulers Reinforced . | . . . . Active Scanning Responses . | . . . . Cargo Convoy Interrupts . | . . . . Stealth | -11 -10 -10 -9 --------- Run | Yrd Mat Min Mat Distress Signals 1 | . 1 . . Communications Jammed . | . . . . Distress Signals . | . . . . Times Spotted 12 | . 7 2 3 Peak Tracking Total 6 | . 6 2 3 Tactical Retreats 1 | . 1 . . Traps | -11 -10 -10 -9 ------- Run | Yrd Mat Min Mat Traps Triggered 1 | . 1 . . Indirectly . | . . . . Trap Hack Attempts . | . . . . Triggered . | . . . . Disarmed . | . . . . Reprogrammed . | . . . . Reused . | . . . . Traps Extracted . | . . . . Installed . | . . . . Triggered . | . . . . Machines | -11 -10 -10 -9 ---------- Run | Yrd Mat Min Mat Machines Disabled . | . . . . Max in Single Turn . | . . . . Machines Repaired . | . . . . Machines Dismantled . | . . . . Machines Sabotaged . | . . . . Overloaded Fab Kills . | . . . . Hacking | -11 -10 -10 -9 --------- Run | Yrd Mat Min Mat Machines Accessed 4 | . 2 . 2 Terminals 4 | . 2 . 2 Fabricators . | . . . . Repair Stations . | . . . . Recycling Units . | . . . . Scanalyzers . | . . . . Garrison Access . | . . . . Total Hacks 9 | . 5 . 4 Successful 6 | . 3 . 3 Failed 3 | . 2 . 1 Catastrophic . | . . . . Database Lockouts . | . . . . Manual . | . . . . Terminals 9 | . 5 . 4 Fabricators . | . . . . Repair Stations . | . . . . Recycling Units . | . . . . Scanalyzers . | . . . . Garrison Access . | . . . . Terminal Hacks 6 | . 3 . 3 Record 1 | . . . 1 Prototype ID Bank 1 | . . . 1 Alert Level 1 | . 1 . . Hauler Manifests 1 | . 1 . . Zone Layout 2 | . 1 . 1 Fabricator Hacks . | . . . . Repair Station Hacks . | . . . . Recycling Unit Hacks . | . . . . Scanalyzer . | . . . . Garrison Access Hacks . | . . . . Unauthorized Hacks . | . . . . Terminals . | . . . . Fabricators . | . . . . Repair Stations . | . . . . Recycling Units . | . . . . Scanalyzers . | . . . . Garrison Access . | . . . . Data Cores Recovered . | . . . . Used . | . . . . Hacking Detections 2 | . 1 . 1 Full Trace Events . | . . . . Feedback Events . | . . . . Feedback Blocked . | . . . . Robot Schematics Acquired . | . . . . Robots Built . | . . . . Authchips . | . . . . Time . | . . . . Total Robot Build Rating . | . . . . Part Schematics Acquired . | . . . . Parts Built . | . . . . Authchips . | . . . . Time . | . . . . Total Part Build Rating . | . . . . Parts Repaired . | . . . . Time . | . . . . Parts Recycled . | . . . . Recycled Matter . | . . . . Retrieved Matter . | . . . . Retrieved Components . | . . . . Parts Scanalyzed . | . . . . Part Schematics Acquired . | . . . . Parts Damaged . | . . . . Bothacking | -11 -10 -10 -9 ------------ Run | Yrd Mat Min Mat Used RIF Installer . | . . . . Robots Hacked . | . . . . Non-combat . | . . . . Combat . | . . . . Robot Hacks Applied . | . . . . Relay Couplers Released . | . . . . Fabnet Peak Effective % . | . . . . Robots Rewired . | . . . . Allies Hacked . | . . . . Hacks Repelled . | . . . . Allies | -11 -10 -10 -9 -------- Run | Yrd Mat Min Mat Total Allies . | . . . . Largest Group . | . . . . Highest-Rated Group . | . . . . Highest-Rated Ally . | . . . . Total Orders . | . . . . Ally Attacks . | . . . . Total Damage . | . . . . Kills . | . . . . Allies Corrupted . | . . . . Allies Melted . | . . . . Intel | -11 -10 -10 -9 ------- Run | Yrd Mat Min Mat Robot Analysis Total . | . . . . Derelict Logs Recovered . | . . . . Drone Launches . | . . . . Drone Recoveries . | . . . . Exploration | -11 -10 -10 -9 ------------- Run | Yrd Mat Min Mat Turns Passed 492 | 44 255 57 136 Spaces Moved 402 | 34 208 63 97 Core 21 | 7 . . 14 Treads . | . . . . Legs . | . . . . Wheels 254 | 27 81 63 83 Hover 127 | . 127 . . Flight . | . . . . Fastest Speed 50 | 50 90 90 90 Average Speed 107 | 89 113 90 112 Slowest Speed 250 | 100 125 90 250 Overloaded Moves . | . . . . Propulsion Burnouts . | . . . . Robots Hopped . | . . . . Cave-ins Triggered 1 | . . . 1 Exploration Rate (%) 17 | 4 40 15 11 Regions Visited 3 Branch Regions 1 Pre-discovered Areas . | . . . . Known Exits Taken 2 | . 1 1 . Unknown Exits Taken 1 | 1 . . . Scrap Searched . | . . . . Spaces Dug 8 | . . . 8 Terrain Destroyed 8 | . . . 8 Melee 8 | . . . 8 Projectile . | . . . . AOE . | . . . . Terrain Rammed . | . . . . Walls Destroyed . | . . . . Machines Disabled . | . . . . Actions | -11 -10 -10 -9 --------- Run | Yrd Mat Min Mat Total 446 | 47 229 63 107 Wait . | . . . . Move 398 | 33 207 62 96 Hop . | . . . . Pick Up 17 | 8 8 . 1 Fast Attach 2 | 1 1 . . Attach 10 | 4 4 1 1 Detach 1 | . 1 . . Swap 2 | . 2 . . Drop 7 | 1 6 . . Fire . | . . . . Melee 8 | . . . 8 Ram . | . . . . Kick . | . . . . Crush . | . . . . Escape Stasis 1 | . . . 1 Rewire . | . . . . Trap . | . . . . Miscellaneous . | . . . . Route ------- -11/Scrapyard -10/Materials -10/Mines -9/Materials History --------- Turn | Location | Event 6 | -11/Scrapyard | Discovered new exit (range 16) 45 | -11/Scrapyard | Entered Materials 72 | -10/Materials | Discovered new exit (range 16) 299 | -10/Materials | Identified exit to Mines 300 | -10/Materials | Entered Mines 311 | -10/Mines | Build established: Mutant 344 | -10/Mines | Assembled infested the area 348 | -10/Mines | Discovered new exit (range 9) 356 | -10/Mines | Identified exit to Materials 357 | -10/Mines | Entered Materials 357 | -9/Materials | Evolved 2 slots: Utility x2 452 | -9/Materials | Crushed by falling debris 493 | -9/Materials | Self-destructed Last Messages --------------- variants are responsible for their oversight and maintenance. >>Prototypes Downloading prototype IDs... Imp. Flight Unit Prc. Beam Rifle 00424_ K-01 Serf cleans the Fusion Modulator. 00426_ Acquired Maul. 00428_ K-01 Serf cleans the Fusion Modulator. 00452_ The unstable cave ceiling collapses. 00452_ Crushed by falling debris. [Achievement: Unlikely Earthworm] 00453_ Arm. Wheel destroyed. 00455_ The unstable cave ceiling collapses. 00455_ G-47 Trooper crushed by falling debris. 00480_ K-01 Serf collects debris. 00487_ K-01 Serf cleans the Terminal. 00489_ Critical hit (Burn: +37). 00490_ K-01 Serf cleans the Terminal. 00491_ Ion Engine destroyed. Map ----- +----------------------------------------------------+ | ???????????? #????????????????????????????? | | ???????????? #????????????????????????????? | | ???????????? #????????????????????????????? | | ???????????? #????????????????????????????? | | ???????????? #########????????????????????? | | ????????????# ????????????????????? | | ????????????# ?????????????????????? | | ????????????# ???????????????????????? | | ????????????# #????????????????????????? | | ?????######## #????????????????????????? | | ?????# # #????????????????????????? | | ?????# # #????????????????????????? | | ?????# + #????????????????????????? | | ?????# """ # ######??????????????????????? | | ?????# """ # #??????????????????????? | | ?????# """ # #???#######????????????? | | ?????######"# #???# #????????????? | | ??????????### #???# #????????????? | | ??????????# ###### #???# #???# + ? | | ??????????# #????## ###### #???# ###? | | ??????????# #?????# + #???# #??? | | ??????????# #?????# # #???### ###??? | | ????????###"####### T # #?????# #????? | | ????????# [ # #######?????# #????? | | ????????# #g k # #?????# #????? | | ????????# # @ # """ ####### #????? | | ????????# """ """ g # """ # # #????? | | ????????# """ """Y# """ # """ # # #????? | | ????????# """ """ # """ # # # #????? | | ????????# # """ # """ # # #####? | | ????????# # + """ # # ? | | ????????########### # """ # / ? | | ?????????# # """ # # # ? | | ?????????# """"" # """ # "T" # ###### ? | | ?????????# """"" # """ # """ # #????# ? | | ?????????# """"" + # # ###### ? | | ?????????# # ####### / ? | | ?????????# [[[ # ######?????# ###### ? | | ?????????# [[[ # #??????????#############? | | ?????????# [[ #####??????????????# ? | | ?????????# [ #??????????????????# """ ? | | ?????????##########??????????????????# "T" ? | | ?????????????????????????????????????# " " ? | | ?????????????????????????????????????# ? | | ?????????????????????????????????????# ? | | ?????????????????????????????????????# ? | | ?????????????????????????????????????#########? | | | | | | | +----------------------------------------------------+ Best States ------------- Heat Dissipation 28 Energy Generation 10 Energy Capacity 250 Matter Stores 252 Matter Capacity 300 Sight Range 16 Terrain Scan Density 10 Evasion (%) 50 Item Schematics ----------------- None Robot Schematics ------------------ None Fabricated ------------ Nothing Alien Tech Used ----------------- None Achievements -------------- Shopping List Unlikely Earthworm Challenges ------------ None Game ------ Seed WeaponsGyrokineticAutogun Manual? 0 Play Time 00:11:54 Cumulative 3.6 hours Start 2024.05.04 @ 17:40:42 End 2024.05.04 @ 17:51:23 Sessions 1 Manual Loads 0 Difficulty Rogue Special Mode None Game No. 7 Rogue 7 Adventurer 0 Explorer 0 Win Type - Total 0 Types 0/0/0/0/0/0/0/0/0 Lore% 10 Gallery% 7 Achievement% 9 Wizard Run 0 Options --------- Layout 1 ASCII 0 Keyboard 0 Movement Mouse Keybinds 0 Fullscreen 2 Font 24/Smallcaps Map View 50x35 Zoom Use 0% Tactical HUD 1 Map Filters NONE Filters NONE Steam 1 RUN: 28645487-72a2-45cf-bd94-1be41e3b935e